[Event "GrandPrix_30.05"]
[Site "Chess.com"]
[Date "2020.05.30"]
[Round "2"]
[White "LANCELOT96"]
[Black "Guenplen"]
[Result "0-1"]
[WhiteElo "2141"]
[BlackElo "2538"]
[TimeControl "600+2"]
[EndTime "8:49:37 PDT"]
[Termination "Guenplen won by checkmate"]

1. d4 {[%clk 0:10:01.1]} 1... d5 {[%clk 0:09:59]} 2. c4 {[%clk 0:10:02.6]} 2...
e6 {[%clk 0:10:00.1]} 3. Nc3 {[%clk 0:10:04.1]} 3... a6 {[%clk 0:10:00.9]} 4.
cxd5 {[%clk 0:10:02.9]} 4... exd5 {[%clk 0:10:02.8]} 5. Nf3 {[%clk 0:10:04.2]}
5... Nf6 {[%clk 0:10:03.1]} 6. Bg5 {[%clk 0:10:05.1]} 6... Be6 {[%clk
0:10:03.2]} 7. e3 {[%clk 0:09:54.1]} 7... Nbd7 {[%clk 0:10:03]} 8. Be2 {[%clk
0:09:51.9]} 8... Bd6 {[%clk 0:09:56.1]} 9. O-O {[%clk 0:09:52.8]} 9... Qb8
{[%clk 0:09:50.8]} 10. Rc1 {[%clk 0:09:49.5]} 10... c6 {[%clk 0:09:49.9]} 11. h3
{[%clk 0:09:49.3]} 11... h6 {[%clk 0:09:49.4]} 12. Bxf6 {[%clk 0:09:50.5]} 12...
Nxf6 {[%clk 0:09:51.3]} 13. Na4 {[%clk 0:09:50.5]} 13... O-O {[%clk 0:09:14.6]}
14. Nc5 {[%clk 0:09:51.4]} 14... Qc7 {[%clk 0:09:01.2]} 15. Bd3 {[%clk
0:09:49.8]} 15... Rae8 {[%clk 0:08:57]} 16. Qc2 {[%clk 0:09:45.3]} 16... Bc8
{[%clk 0:08:54]} 17. b4 {[%clk 0:09:26.3]} 17... Qe7 {[%clk 0:08:34]} 18. Bf5
{[%clk 0:09:17.1]} 18... Bxf5 {[%clk 0:08:23.6]} 19. Qxf5 {[%clk 0:09:17.9]}
19... g6 {[%clk 0:08:25.5]} 20. Qc2 {[%clk 0:09:11.8]} 20... Ne4 {[%clk
0:08:25.1]} 21. a4 {[%clk 0:09:06.9]} 21... Rc8 {[%clk 0:07:53.5]} 22. Qb3
{[%clk 0:08:55]} 22... Rfe8 {[%clk 0:07:22.4]} 23. Rc2 {[%clk 0:08:37.8]} 23...
g5 {[%clk 0:06:42.9]} 24. Nd2 {[%clk 0:07:46.4]} 24... Nf6 {[%clk 0:06:12.5]}
25. Rfc1 {[%clk 0:07:29.9]} 25... h5 {[%clk 0:05:42.8]} 26. b5 {[%clk
0:07:22.2]} 26... axb5 {[%clk 0:05:41.3]} 27. axb5 {[%clk 0:07:23.3]} 27... g4
{[%clk 0:05:23.6]} 28. hxg4 {[%clk 0:07:24]} 28... hxg4 {[%clk 0:05:24.9]} 29.
g3 {[%clk 0:07:00.3]} 29... Kg7 {[%clk 0:05:13]} 30. bxc6 {[%clk 0:07:00.5]}
30... bxc6 {[%clk 0:05:14.1]} 31. Na4 {[%clk 0:06:41.1]} 31... Rh8 {[%clk
0:04:25.7]} 32. Rxc6 {[%clk 0:06:39.7]} 32... Rxc6 {[%clk 0:04:25]} 33. Rxc6
{[%clk 0:06:39.4]} 33... Ne4 {[%clk 0:04:26.9]} 34. Qxd5 {[%clk 0:06:24.8]}
34... Nxd2 {[%clk 0:04:12.3]} 35. Qxd6 {[%clk 0:06:13.1]} 35... Rh1+ {[%clk
0:01:42.5]} 36. Kxh1 {[%clk 0:05:56.1]} 36... Qe4+ {[%clk 0:01:44.4]} 37. Kh2
{[%clk 0:04:05.9]} 37... Nf3+ {[%clk 0:01:43.6]} 38. Kg2 {[%clk 0:03:34.7]}
38... Nh4+ {[%clk 0:01:40.4]} 39. Kf1 {[%clk 0:03:17.8]} 39... Qd3+ {[%clk
0:01:36.9]} 40. Kg1 {[%clk 0:03:19.2]} 40... Qd1+ {[%clk 0:01:36.4]} 41. Kh2
{[%clk 0:03:20.5]} 41... Nf3+ {[%clk 0:01:37.4]} 42. Kg2 {[%clk 0:03:21.9]}
42... Qg1# {[%clk 0:01:37.9]} 0-1

[Event "GrandPrix_30.05"]
[Site "Chess.com"]
[Date "2020.05.30"]
[Round "2"]
[White "Yaroslav_Remizov"]
[Black "SantoBlue"]
[Result "1-0"]
[WhiteElo "2312"]
[BlackElo "2481"]
[TimeControl "600+2"]
[EndTime "8:49:50 PDT"]
[Termination "Yaroslav_Remizov won by resignation"]

1. e4 {[%clk 0:10:01.9]} 1... e5 {[%clk 0:09:59.7]} 2. Nf3 {[%clk 0:10:01.9]}
2... Nc6 {[%clk 0:09:59.2]} 3. Bc4 {[%clk 0:10:02.5]} 3... Bc5 {[%clk
0:09:58.8]} 4. c3 {[%clk 0:10:03.4]} 4... Nf6 {[%clk 0:09:51.6]} 5. d3 {[%clk
0:10:04.3]} 5... d6 {[%clk 0:09:47.1]} 6. Nbd2 {[%clk 0:09:53.9]} 6... a6 {[%clk
0:09:32.7]} 7. Nf1 {[%clk 0:09:20.8]} 7... Ba7 {[%clk 0:09:31.5]} 8. Bb3 {[%clk
0:09:11.9]} 8... Be6 {[%clk 0:09:24.3]} 9. Ng3 {[%clk 0:08:59.6]} 9... Bxb3
{[%clk 0:09:09.9]} 10. axb3 {[%clk 0:08:33.3]} 10... d5 {[%clk 0:09:04.3]} 11.
Bg5 {[%clk 0:08:21.7]} 11... dxe4 {[%clk 0:06:41.1]} 12. dxe4 {[%clk 0:07:52.4]}
12... Qxd1+ {[%clk 0:06:27]} 13. Rxd1 {[%clk 0:07:54.3]} 13... Nd7 {[%clk
0:06:27.6]} 14. Nf5 {[%clk 0:07:31]} 14... Rg8 {[%clk 0:06:18.2]} 15. b4 {[%clk
0:07:01.3]} 15... f6 {[%clk 0:05:33.7]} 16. Be3 {[%clk 0:06:38.7]} 16... g6
{[%clk 0:05:31.6]} 17. Nh6 {[%clk 0:06:38]} 17... Rf8 {[%clk 0:05:10.4]} 18.
Bxa7 {[%clk 0:06:37.4]} 18... Nxa7 {[%clk 0:05:06.2]} 19. h4 {[%clk 0:06:35.7]}
19... O-O-O {[%clk 0:04:43.7]} 20. h5 {[%clk 0:06:29.3]} 20... Nc6 {[%clk
0:03:28.3]} 21. Ke2 {[%clk 0:06:06.7]} 21... Ne7 {[%clk 0:03:25.4]} 22. Ng4
{[%clk 0:05:37]} 22... Rf7 {[%clk 0:02:59.3]} 23. hxg6 {[%clk 0:05:11.4]} 23...
hxg6 {[%clk 0:02:58.9]} 24. Rh6 {[%clk 0:05:02.8]} 24... Nf8 {[%clk 0:02:58.8]}
25. Rh8 {[%clk 0:04:29.8]} 25... Ne6 {[%clk 0:01:52.3]} 26. Rdxd8+ {[%clk
0:04:11.8]} 26... Nxd8 {[%clk 0:01:53.2]} 27. Nh6 {[%clk 0:04:08.2]} 27... Rg7
{[%clk 0:01:53.9]} 28. Rf8 {[%clk 0:04:06.3]} 28... Rh7 {[%clk 0:01:49.6]} 29.
Ng4 {[%clk 0:04:04]} 29... f5 {[%clk 0:01:15.5]} 30. Ngxe5 {[%clk 0:03:29.9]}
30... fxe4 {[%clk 0:00:52.3]} 31. Ng5 {[%clk 0:03:30.2]} 31... Rg7 {[%clk
0:00:43.1]} 32. Rxd8+ {[%clk 0:03:21.2]} 1-0

[Event "GrandPrix_30.05"]
[Site "Chess.com"]
[Date "2020.05.30"]
[Round "2"]
[White "KruHor"]
[Black "Saqo007"]
[Result "1/2-1/2"]
[WhiteElo "2408"]
[BlackElo "2149"]
[TimeControl "600+2"]
[EndTime "8:49:51 PDT"]
[Termination "Game drawn by repetition"]

1. d4 {[%clk 0:09:49.6]} 1... d5 {[%clk 0:09:56]} 2. c4 {[%clk 0:09:44.2]} 2...
e6 {[%clk 0:09:56.9]} 3. Nf3 {[%clk 0:09:43.9]} 3... Nf6 {[%clk 0:09:57.5]} 4.
Nc3 {[%clk 0:09:39.7]} 4... Be7 {[%clk 0:09:58.2]} 5. Bg5 {[%clk 0:09:38.5]}
5... O-O {[%clk 0:09:58.3]} 6. e3 {[%clk 0:09:34.6]} 6... h6 {[%clk 0:09:57.6]}
7. Bxf6 {[%clk 0:09:31.9]} 7... Bxf6 {[%clk 0:09:58]} 8. Qb3 {[%clk 0:09:32.5]}
8... c6 {[%clk 0:09:39.7]} 9. Rd1 {[%clk 0:09:30.8]} 9... Nd7 {[%clk 0:09:39]}
10. Bd3 {[%clk 0:09:28.8]} 10... a6 {[%clk 0:09:34.2]} 11. Bb1 {[%clk
0:09:27.3]} 11... g6 {[%clk 0:09:27.5]} 12. h4 {[%clk 0:09:24.2]} 12... Bg7
{[%clk 0:09:28.6]} 13. Qc2 {[%clk 0:08:31.7]} 13... f5 {[%clk 0:09:21.7]} 14.
Ne2 {[%clk 0:08:10.8]} 14... Nf6 {[%clk 0:09:13.7]} 15. Nf4 {[%clk 0:08:02.7]}
15... Qe8 {[%clk 0:08:27.9]} 16. Ne5 {[%clk 0:08:01.1]} 16... g5 {[%clk
0:08:28.3]} 17. hxg5 {[%clk 0:07:50.8]} 17... hxg5 {[%clk 0:08:27.9]} 18. Nfg6
{[%clk 0:07:49]} 18... Ne4 {[%clk 0:08:25.4]} 19. Nxf8 {[%clk 0:07:40.4]} 19...
Qxf8 {[%clk 0:08:25.7]} 20. Qe2 {[%clk 0:07:23.5]} 20... g4 {[%clk 0:08:21.8]}
21. Bxe4 {[%clk 0:07:06.8]} 21... dxe4 {[%clk 0:08:15.9]} 22. c5 {[%clk
0:06:50.2]} 22... b6 {[%clk 0:07:22.5]} 23. cxb6 {[%clk 0:06:26.4]} 23... Qb4+
{[%clk 0:06:40.3]} 24. Qd2 {[%clk 0:06:08.8]} 24... Qxb6 {[%clk 0:06:31.1]} 25.
Rc1 {[%clk 0:06:01.4]} 25... Bb7 {[%clk 0:06:15.4]} 26. Nd7 {[%clk 0:05:58.6]}
26... Qb5 {[%clk 0:06:08.7]} 27. Nc5 {[%clk 0:05:55.5]} 27... Bc8 {[%clk
0:06:08.5]} 28. a4 {[%clk 0:05:27.5]} 28... Qb6 {[%clk 0:05:56.4]} 29. Rc3
{[%clk 0:05:24.2]} 29... Rb8 {[%clk 0:05:46.9]} 30. Rb3 {[%clk 0:05:12.9]} 30...
Qc7 {[%clk 0:05:44.2]} 31. Rxb8 {[%clk 0:05:08.7]} 31... Qxb8 {[%clk 0:05:46.1]}
32. Qa5 {[%clk 0:04:43.7]} 32... Bf6 {[%clk 0:05:10.5]} 33. b3 {[%clk
0:04:19.4]} 33... g3 {[%clk 0:05:08]} 34. Qd2 {[%clk 0:03:58.4]} 34... Bg5
{[%clk 0:04:55.4]} 35. Rh5 {[%clk 0:03:18.5]} 35... Bf6 {[%clk 0:04:53.3]} 36.
Rh3 {[%clk 0:03:01.6]} 36... gxf2+ {[%clk 0:04:50.1]} 37. Qxf2 {[%clk
0:03:01.5]} 37... Qb4+ {[%clk 0:04:49.9]} 38. Kf1 {[%clk 0:02:59]} 38... Qc3
{[%clk 0:04:09.1]} 39. Qg3+ {[%clk 0:02:59.2]} 39... Kf8 {[%clk 0:04:09.7]} 40.
Qd6+ {[%clk 0:02:55.4]} 40... Kg8 {[%clk 0:04:10.1]} 41. Rg3+ {[%clk 0:02:40.2]}
41... Kf7 {[%clk 0:03:47.4]} 42. Qc7+ {[%clk 0:02:37.6]} 42... Be7 {[%clk
0:03:48]} 43. Qxc8 {[%clk 0:02:21.9]} 43... Qc1+ {[%clk 0:03:45.2]} 44. Kf2
{[%clk 0:02:22.5]} 44... Qd2+ {[%clk 0:03:46.4]} 45. Kg1 {[%clk 0:02:23]} 45...
Qd1+ {[%clk 0:03:33.3]} 46. Kh2 {[%clk 0:01:58.8]} 46... Qh5+ {[%clk 0:03:33.9]}
47. Kg1 {[%clk 0:01:49.1]} 47... Qd1+ {[%clk 0:03:33.7]} 48. Kh2 {[%clk
0:01:45.3]} 48... Qh5+ {[%clk 0:03:34.1]} 49. Kg1 {[%clk 0:01:46]} 49... Qd1+
{[%clk 0:03:34.8]} 1/2-1/2

[Event "GrandPrix_30.05"]
[Site "Chess.com"]
[Date "2020.05.30"]
[Round "2"]
[White "Zakaryan_David"]
[Black "elohunter1999"]
[Result "1-0"]
[WhiteElo "1579"]
[BlackElo "2201"]
[TimeControl "600+2"]
[EndTime "8:49:53 PDT"]
[Termination "Zakaryan_David won on time"]

1. d4 {[%clk 0:10:00]} 1... Nf6 {[%clk 0:09:58.6]} 2. c4 {[%clk 0:09:59]} 2...
e6 {[%clk 0:09:59]} 3. Nf3 {[%clk 0:09:58.6]} 3... d5 {[%clk 0:09:58.1]} 4. g3
{[%clk 0:09:49]} 4... Bb4+ {[%clk 0:09:03.5]} 5. Bd2 {[%clk 0:09:48.4]} 5... Be7
{[%clk 0:09:03.8]} 6. Bg2 {[%clk 0:09:49.1]} 6... O-O {[%clk 0:09:04.2]} 7. O-O
{[%clk 0:09:50]} 7... Nbd7 {[%clk 0:09:04.3]} 8. Qc2 {[%clk 0:09:48.3]} 8... Ne4
{[%clk 0:09:04.6]} 9. Bf4 {[%clk 0:09:45.4]} 9... c6 {[%clk 0:09:02.8]} 10. Nc3
{[%clk 0:09:36.9]} 10... g5 {[%clk 0:09:02.8]} 11. Bc1 {[%clk 0:09:35.3]} 11...
f5 {[%clk 0:08:58.6]} 12. e3 {[%clk 0:08:35.6]} 12... b6 {[%clk 0:08:28.9]} 13.
b3 {[%clk 0:08:28.8]} 13... Bb7 {[%clk 0:08:20.6]} 14. Ne5 {[%clk 0:08:17.1]}
14... Nxe5 {[%clk 0:07:12.3]} 15. dxe5 {[%clk 0:08:19]} 15... Qe8 {[%clk
0:06:47.8]} 16. Bb2 {[%clk 0:08:02.3]} 16... Qg6 {[%clk 0:06:00.4]} 17. Ne2
{[%clk 0:07:52.7]} 17... Rac8 {[%clk 0:05:02.9]} 18. Rfd1 {[%clk 0:07:43.4]}
18... Kh8 {[%clk 0:04:44.6]} 19. Rac1 {[%clk 0:07:30]} 19... h5 {[%clk
0:04:18.3]} 20. f3 {[%clk 0:07:28.4]} 20... Nc5 {[%clk 0:04:17.2]} 21. b4 {[%clk
0:07:01.1]} 21... Nd7 {[%clk 0:04:10.4]} 22. cxd5 {[%clk 0:07:00.3]} 22... exd5
{[%clk 0:02:34.2]} 23. e6+ {[%clk 0:06:53.9]} 23... Nf6 {[%clk 0:02:34.5]} 24.
Nd4 {[%clk 0:06:54.6]} 24... Bxb4 {[%clk 0:02:25.1]} 25. Qxf5 {[%clk 0:06:43.9]}
25... Kh7 {[%clk 0:02:00.8]} 26. g4 {[%clk 0:06:10.3]} 26... hxg4 {[%clk
0:01:48.1]} 27. fxg4 {[%clk 0:06:12.2]} 27... c5 {[%clk 0:00:59.3]} 28. Nf3
{[%clk 0:06:11.5]} 28... Ne4 {[%clk 0:00:54.8]} 29. Qxg6+ {[%clk 0:05:57]} 29...
Kxg6 {[%clk 0:00:55.2]} 30. Ne5+ {[%clk 0:05:56.5]} 30... Kh6 {[%clk 0:00:44.7]}
31. Bxe4 {[%clk 0:05:54.6]} 31... dxe4 {[%clk 0:00:46.6]} 32. Nf7+ {[%clk
0:05:42.5]} 32... Kg6 {[%clk 0:00:39.8]} 33. Ne5+ {[%clk 0:05:41.2]} 33... Kh6
{[%clk 0:00:20.9]} 34. e7 {[%clk 0:05:34.1]} 34... Rfe8 {[%clk 0:00:17.7]} 35.
Rd6+ {[%clk 0:05:32.6]} 35... Kh7 {[%clk 0:00:18.3]} 36. Nf7 {[%clk 0:05:25.2]}
36... Rc6 {[%clk 0:00:13.1]} 37. Bf6 {[%clk 0:05:06.5]} 37... Rxd6 {[%clk
0:00:10]} 38. Nxd6 {[%clk 0:05:07.2]} 38... Bd2 {[%clk 0:00:10.5]} 39. Rd1
{[%clk 0:04:47.3]} 39... Bxe3+ {[%clk 0:00:11.3]} 40. Kg2 {[%clk 0:04:48.1]}
40... Rb8 {[%clk 0:00:05.3]} 41. Nxb7 {[%clk 0:04:47.9]} 41... Bf4 {[%clk
0:00:05.1]} 42. Nd8 {[%clk 0:04:43.7]} 1-0

[Event "GrandPrix_30.05"]
[Site "Chess.com"]
[Date "2020.05.30"]
[Round "2"]
[White "Jan1401"]
[Black "Sanan_Sjugirov"]
[Result "0-1"]
[WhiteElo "2284"]
[BlackElo "2657"]
[TimeControl "600+2"]
[EndTime "8:49:54 PDT"]
[Termination "Sanan_Sjugirov won by checkmate"]

1. e4 {[%clk 0:10:00.9]} 1... c5 {[%clk 0:09:01.3]} 2. Nf3 {[%clk 0:10:00.5]}
2... d6 {[%clk 0:09:01.2]} 3. Bb5+ {[%clk 0:10:00.1]} 3... Bd7 {[%clk
0:08:56.6]} 4. Bxd7+ {[%clk 0:09:58.9]} 4... Qxd7 {[%clk 0:08:56.1]} 5. O-O
{[%clk 0:09:59.7]} 5... Nf6 {[%clk 0:08:24.4]} 6. Re1 {[%clk 0:09:59.6]} 6...
Nc6 {[%clk 0:08:21.1]} 7. c3 {[%clk 0:10:00.2]} 7... e6 {[%clk 0:08:21.4]} 8. d4
{[%clk 0:10:00.7]} 8... cxd4 {[%clk 0:08:22.5]} 9. cxd4 {[%clk 0:10:01.8]} 9...
d5 {[%clk 0:08:23.5]} 10. e5 {[%clk 0:10:02.9]} 10... Ne4 {[%clk 0:08:24.4]} 11.
a3 {[%clk 0:10:02.8]} 11... Be7 {[%clk 0:08:17.4]} 12. Nbd2 {[%clk 0:10:03.5]}
12... Nxd2 {[%clk 0:08:17.7]} 13. Bxd2 {[%clk 0:10:04.4]} 13... O-O {[%clk
0:08:13.1]} 14. Rc1 {[%clk 0:10:02.7]} 14... Rfc8 {[%clk 0:07:58.5]} 15. Rc3
{[%clk 0:09:52]} 15... Bd8 {[%clk 0:07:57.6]} 16. Rd3 {[%clk 0:09:20]} 16... Ne7
{[%clk 0:07:55.8]} 17. h4 {[%clk 0:08:52.1]} 17... Nf5 {[%clk 0:07:51.4]} 18. g4
{[%clk 0:08:22.7]} 18... Ne7 {[%clk 0:07:12]} 19. h5 {[%clk 0:08:13.9]} 19...
Qc6 {[%clk 0:05:38.8]} 20. Bc3 {[%clk 0:07:34.4]} 20... h6 {[%clk 0:04:51.8]}
21. Kg2 {[%clk 0:07:20.1]} 21... Qb5 {[%clk 0:04:28.2]} 22. Qd2 {[%clk
0:07:11.3]} 22... a5 {[%clk 0:04:09.6]} 23. Nh4 {[%clk 0:05:34.7]} 23... Qc4
{[%clk 0:03:40]} 24. Rf3 {[%clk 0:05:30.3]} 24... Nc6 {[%clk 0:03:28.2]} 25. Rh3
{[%clk 0:04:56.7]} 25... b5 {[%clk 0:03:11.5]} 26. Rc1 {[%clk 0:04:44.2]} 26...
Bg5 {[%clk 0:01:49.3]} 27. f4 {[%clk 0:04:32]} 27... Bxh4 {[%clk 0:01:49.8]} 28.
Rxh4 {[%clk 0:04:30.5]} 28... Nxd4 {[%clk 0:01:42.4]} 29. Re1 {[%clk 0:03:32.5]}
29... Nb3 {[%clk 0:01:37.2]} 30. Qf2 {[%clk 0:03:21.3]} 30... d4 {[%clk
0:01:34.5]} 31. Bd2 {[%clk 0:03:21.8]} 31... Qd5+ {[%clk 0:01:33.5]} 32. Kg3
{[%clk 0:03:18.9]} 32... Rc2 {[%clk 0:01:33.6]} 33. Rd1 {[%clk 0:03:16.2]} 33...
Rac8 {[%clk 0:01:28.7]} 34. g5 {[%clk 0:03:12.9]} 34... Nxd2 {[%clk 0:01:21]}
35. Rxd2 {[%clk 0:03:13]} 35... Qb3+ {[%clk 0:01:22]} 36. Kg4 {[%clk 0:03:09.9]}
36... Rxd2 {[%clk 0:01:23]} 37. Qxd2 {[%clk 0:03:10.6]} 37... Rc2 {[%clk
0:01:23.8]} 38. Qxd4 {[%clk 0:03:05.4]} 38... Rg2# {[%clk 0:01:24.4]} 0-1

[Event "GrandPrix_30.05"]
[Site "Chess.com"]
[Date "2020.05.30"]
[Round "2"]
[White "Mikhail_Golubev"]
[Black "Artur0208"]
[Result "1/2-1/2"]
[WhiteElo "2049"]
[BlackElo "2274"]
[TimeControl "600+2"]
[EndTime "8:49:55 PDT"]
[Termination "Game drawn by agreement"]

1. e4 {[%clk 0:10:01.9]} 1... e5 {[%clk 0:10:00.3]} 2. Nf3 {[%clk 0:10:02.2]}
2... Nc6 {[%clk 0:10:00.7]} 3. Nc3 {[%clk 0:10:03]} 3... Nf6 {[%clk 0:10:01.2]}
4. d4 {[%clk 0:10:04]} 4... exd4 {[%clk 0:10:03.1]} 5. Nxd4 {[%clk 0:10:04.9]}
5... Bb4 {[%clk 0:10:04.6]} 6. Nxc6 {[%clk 0:10:05.4]} 6... bxc6 {[%clk
0:10:06.5]} 7. Bd3 {[%clk 0:10:05.5]} 7... O-O {[%clk 0:10:08]} 8. O-O {[%clk
0:10:03.9]} 8... d5 {[%clk 0:10:09.5]} 9. Bd2 {[%clk 0:09:56.8]} 9... Bxc3
{[%clk 0:09:14.3]} 10. Bxc3 {[%clk 0:09:54.6]} 10... Nxe4 {[%clk 0:09:03.7]} 11.
Bxe4 {[%clk 0:09:54.9]} 11... dxe4 {[%clk 0:09:05.2]} 12. Qe2 {[%clk 0:09:55.8]}
12... Qe7 {[%clk 0:09:05]} 13. Rad1 {[%clk 0:08:51]} 13... Bf5 {[%clk
0:09:04.2]} 14. Qe3 {[%clk 0:07:47.3]} 14... Rfd8 {[%clk 0:09:00.1]} 15. Rxd8+
{[%clk 0:06:51.2]} 15... Qxd8 {[%clk 0:08:56.5]} 16. f3 {[%clk 0:05:17]} 16...
Qd5 {[%clk 0:07:52.8]} 17. fxe4 {[%clk 0:04:31.2]} 17... Bxe4 {[%clk 0:07:38.5]}
18. Qg3 {[%clk 0:02:59.1]} 18... Bg6 {[%clk 0:07:37.1]} 19. Re1 {[%clk 0:02:44]}
19... Qd6 {[%clk 0:07:26]} 20. Be5 {[%clk 0:02:17.6]} 20... Qc5+ {[%clk
0:07:24.5]} 21. Qf2 {[%clk 0:01:57]} 21... Qxf2+ {[%clk 0:06:42.3]} 22. Kxf2
{[%clk 0:01:57]} 22... Bxc2 {[%clk 0:06:44.2]} 23. Bxc7 {[%clk 0:01:53.3]} 23...
Bf5 {[%clk 0:06:45.3]} 24. Re7 {[%clk 0:01:26.6]} 24... Be6 {[%clk 0:06:46]} 25.
a3 {[%clk 0:01:23.7]} 25... h6 {[%clk 0:06:47.3]} 26. Bf4 {[%clk 0:00:53.1]}
26... a6 {[%clk 0:06:46.9]} 27. Rb7 {[%clk 0:00:35]} 27... Bc4 {[%clk
0:06:43.4]} 28. Rb8+ {[%clk 0:00:25]} 28... Rxb8 {[%clk 0:06:43.9]} 29. Bxb8
{[%clk 0:00:25.5]} 29... f6 {[%clk 0:06:45.3]} 30. Bd6 {[%clk 0:00:24.3]} 30...
h5 {[%clk 0:06:45.6]} 31. h4 {[%clk 0:00:23.7]} 31... Kf7 {[%clk 0:06:46.1]} 32.
Bb4 {[%clk 0:00:21.2]} 32... Ke6 {[%clk 0:06:45.4]} 33. g3 {[%clk 0:00:13.1]}
33... Kd5 {[%clk 0:06:44.3]} 34. Bf8 {[%clk 0:00:12.5]} 34... g6 {[%clk
0:06:44.4]} 35. Be7 {[%clk 0:00:12.4]} 35... Ke6 {[%clk 0:06:44.9]} 36. Bb4
{[%clk 0:00:12.1]} 36... Kf5 {[%clk 0:06:44.2]} 37. Bc3 {[%clk 0:00:11.4]} 37...
g5 {[%clk 0:06:27.8]} 38. hxg5 {[%clk 0:00:11]} 38... fxg5 {[%clk 0:06:29.7]}
39. Bd2 {[%clk 0:00:10.7]} 39... Kg4 {[%clk 0:06:30.4]} 40. Bc3 {[%clk
0:00:09.6]} 40... Bd5 {[%clk 0:06:30.8]} 41. Bd2 {[%clk 0:00:09.4]} 41... Kf5
{[%clk 0:06:29.6]} 42. Bc3 {[%clk 0:00:08.7]} 42... Ke4 {[%clk 0:06:30.3]} 43.
Bd2 {[%clk 0:00:09.1]} 43... Kf5 {[%clk 0:06:27.7]} 44. Bc3 {[%clk 0:00:09.8]}
44... c5 {[%clk 0:06:25.4]} 45. Bd2 {[%clk 0:00:10.4]} 45... c4 {[%clk
0:06:25.8]} 46. Bc3 {[%clk 0:00:11.3]} 46... Be4 {[%clk 0:06:25.9]} 47. Bd2
{[%clk 0:00:12]} 47... Kg4 {[%clk 0:06:25.9]} 48. Bc3 {[%clk 0:00:12.3]} 48...
Bb7 {[%clk 0:06:19.8]} 49. Bd2 {[%clk 0:00:12.4]} 49... Bc6 {[%clk 0:06:04.4]}
50. Bc3 {[%clk 0:00:13.3]} 50... h4 {[%clk 0:06:05.6]} 51. gxh4 {[%clk
0:00:13.3]} 51... gxh4 {[%clk 0:06:07.5]} 52. Kg1 {[%clk 0:00:11.7]} 52... Kg3
{[%clk 0:05:55.6]} 53. Be5+ {[%clk 0:00:12.1]} 53... Kf3 {[%clk 0:05:56.9]} 54.
Kh2 {[%clk 0:00:12]} 54... Bd7 {[%clk 0:05:57.6]} 55. Bf6 {[%clk 0:00:12.4]}
55... Kg4 {[%clk 0:05:58.8]} 56. Bg7 {[%clk 0:00:13.2]} 56... Bc6 {[%clk
0:06:00.1]} 57. Bh8 {[%clk 0:00:14.1]} 57... Kf5 {[%clk 0:06:01]} 58. Bg7 {[%clk
0:00:14.9]} 58... Kg6 {[%clk 0:06:01.3]} 59. Bh8 {[%clk 0:00:15.7]} 59... Bd7
{[%clk 0:06:02.2]} 60. Bd4 {[%clk 0:00:15.9]} 60... Kf5 {[%clk 0:06:03.3]} 61.
Bc3 {[%clk 0:00:16.8]} 61... Ke4 {[%clk 0:06:03.6]} 62. Bf6 {[%clk 0:00:17.1]}
62... h3 {[%clk 0:06:04.4]} 63. Bg7 {[%clk 0:00:17.9]} 63... Kd3 {[%clk
0:06:05.6]} 64. Bh8 {[%clk 0:00:18.9]} 64... Kc2 {[%clk 0:06:06.6]} 65. Bg7
{[%clk 0:00:19.8]} 1/2-1/2

[Event "GrandPrix_30.05"]
[Site "Chess.com"]
[Date "2020.05.30"]
[Round "2"]
[White "tianachess"]
[Black "BashirliN"]
[Result "0-1"]
[WhiteElo "2002"]
[BlackElo "2195"]
[TimeControl "600+2"]
[EndTime "8:49:56 PDT"]
[Termination "BashirliN won by checkmate"]

1. d4 {[%clk 0:09:54.5]} 1... Nf6 {[%clk 0:10:01]} 2. Nf3 {[%clk 0:09:54.8]}
2... e6 {[%clk 0:10:00.7]} 3. c4 {[%clk 0:09:54.4]} 3... Bb4+ {[%clk 0:10:00.5]}
4. Nbd2 {[%clk 0:09:54.2]} 4... O-O {[%clk 0:10:00.5]} 5. a3 {[%clk 0:09:52.8]}
5... Be7 {[%clk 0:10:01.2]} 6. e3 {[%clk 0:09:10.8]} 6... b6 {[%clk 0:09:28.6]}
7. Bd3 {[%clk 0:09:07.3]} 7... Bb7 {[%clk 0:09:30.5]} 8. O-O {[%clk 0:09:00.6]}
8... d6 {[%clk 0:09:09.4]} 9. b4 {[%clk 0:08:13.5]} 9... Nbd7 {[%clk 0:08:33.8]}
10. Bb2 {[%clk 0:08:12.3]} 10... c5 {[%clk 0:08:32.3]} 11. Qc2 {[%clk
0:07:23.2]} 11... Rc8 {[%clk 0:08:22]} 12. Rfd1 {[%clk 0:05:58.1]} 12... Qc7
{[%clk 0:08:11.9]} 13. h3 {[%clk 0:04:46.2]} 13... Qb8 {[%clk 0:08:03.5]} 14.
dxc5 {[%clk 0:04:13.5]} 14... bxc5 {[%clk 0:07:47.2]} 15. e4 {[%clk 0:03:47.2]}
15... Rfd8 {[%clk 0:07:39.3]} 16. b5 {[%clk 0:03:39.9]} 16... Nf8 {[%clk
0:07:37.7]} 17. e5 {[%clk 0:03:07.9]} 17... Nh5 {[%clk 0:07:20.8]} 18. exd6
{[%clk 0:02:59.1]} 18... Bxd6 {[%clk 0:07:18.6]} 19. Be4 {[%clk 0:02:50.2]}
19... Ng6 {[%clk 0:06:58.1]} 20. Bxb7 {[%clk 0:02:33.5]} 20... Qxb7 {[%clk
0:07:00]} 21. Ne4 {[%clk 0:02:28.1]} 21... Bf8 {[%clk 0:06:19.4]} 22. Ne5 {[%clk
0:01:32.3]} 22... f5 {[%clk 0:04:38.7]} 23. Ng5 {[%clk 0:00:50.8]} 23... Nhf4
{[%clk 0:03:45.5]} 24. Nc6 {[%clk 0:00:42.3]} 24... Rxd1+ {[%clk 0:03:45]} 25.
Rxd1 {[%clk 0:00:42.2]} 25... Rxc6 {[%clk 0:03:43.7]} 26. bxc6 {[%clk
0:00:42.1]} 26... Qxc6 {[%clk 0:03:45.6]} 27. f3 {[%clk 0:00:36.9]} 27... h6
{[%clk 0:03:46.2]} 28. g3 {[%clk 0:00:24.3]} 28... hxg5 {[%clk 0:03:46]} 29.
gxf4 {[%clk 0:00:24.8]} 29... Qxf3 {[%clk 0:03:46.2]} 30. fxg5 {[%clk
0:00:23.4]} 30... Nf4 {[%clk 0:03:46.3]} 31. h4 {[%clk 0:00:19.2]} 31... Ne2+
{[%clk 0:03:43.4]} 32. Kh2 {[%clk 0:00:17.7]} 32... Qg3+ {[%clk 0:03:44.5]} 33.
Kh1 {[%clk 0:00:18.2]} 33... Qh3# {[%clk 0:03:45.8]} 0-1